[Event "Live Chess"]
[Site "Chess.com"]
[Date "2024.06.01"]
[Round "-"]
[White "Frankie_Badacsonyi"]
[Black "Cruiseylee78"]
[Result "1-0"]
[WhiteElo "2440"]
[BlackElo "1680"]
[TimeControl "300"]
[EndTime "13:13:30 PDT"]
[Termination "Frankie_Badacsonyi won on time"]

1. Nf3 {[%clk 0:04:58]} 1... d6 {[%clk 0:04:58.8]} 2. b3 {[%clk 0:04:57.2]} 2...
Nd7 {[%clk 0:04:58.3]} 3. Bb2 {[%clk 0:04:56.7]} 3... e5 {[%clk 0:04:57.8]} 4.
e3 {[%clk 0:04:56.3]} 4... Ngf6 {[%clk 0:04:56.6]} 5. d4 {[%clk 0:04:55.8]} 5...
c6 {[%clk 0:04:55]} 6. c4 {[%clk 0:04:55]} 6... Qc7 {[%clk 0:04:54.1]} 7. Nc3
{[%clk 0:04:53.8]} 7... Be7 {[%clk 0:04:53.1]} 8. Be2 {[%clk 0:04:52.3]} 8... h6
{[%clk 0:04:52.3]} 9. O-O {[%clk 0:04:46.9]} 9... g5 {[%clk 0:04:51.3]} 10. Rc1
{[%clk 0:04:40.8]} 10... Nf8 {[%clk 0:04:44.2]} 11. Qc2 {[%clk 0:04:29.6]} 11...
Ng6 {[%clk 0:04:43.1]} 12. Nd2 {[%clk 0:04:22.5]} 12... h5 {[%clk 0:04:38.3]}
13. Nde4 {[%clk 0:04:20.2]} 13... Nxe4 {[%clk 0:04:32]} 14. Nxe4 {[%clk
0:04:20.1]} 14... f5 {[%clk 0:04:27.8]} 15. Nc3 {[%clk 0:04:18.6]} 15... g4
{[%clk 0:04:26.1]} 16. f3 {[%clk 0:03:27.3]} 16... gxf3 {[%clk 0:03:55.7]} 17.
Bxf3 {[%clk 0:03:27.2]} 17... Nh4 {[%clk 0:03:51.7]} 18. Qe2 {[%clk 0:03:13.9]}
18... Nxf3+ {[%clk 0:03:43.7]} 19. Qxf3 {[%clk 0:03:13.8]} 19... h4 {[%clk
0:03:38.6]} 20. Rcd1 {[%clk 0:02:44.4]} 20... Bd7 {[%clk 0:03:34.7]} 21. Ba3
{[%clk 0:02:39.6]} 21... e4 {[%clk 0:03:31.6]} 22. Qf2 {[%clk 0:02:33.6]} 22...
h3 {[%clk 0:03:28.5]} 23. g3 {[%clk 0:02:31.4]} 23... O-O-O {[%clk 0:03:26]} 24.
d5 {[%clk 0:02:23.5]} 24... c5 {[%clk 0:03:22.1]} 25. Bb2 {[%clk 0:02:22.6]}
25... Rhg8 {[%clk 0:03:18.6]} 26. Nb5 {[%clk 0:02:16.7]} 26... Bxb5 {[%clk
0:03:13.8]} 27. cxb5 {[%clk 0:02:16.6]} 27... Rdf8 {[%clk 0:03:09.5]} 28. a4
{[%clk 0:02:13.2]} 28... Kb8 {[%clk 0:03:04.4]} 29. Qe2 {[%clk 0:02:08.4]} 29...
Bg5 {[%clk 0:03:00.3]} 30. Rde1 {[%clk 0:01:55.6]} 30... Qa5 {[%clk 0:02:57.1]}
31. Qc2 {[%clk 0:01:46.2]} 31... Qd8 {[%clk 0:02:39]} 32. Re2 {[%clk 0:01:40.1]}
32... Qd7 {[%clk 0:02:35.5]} 33. Bc1 {[%clk 0:01:36.8]} 33... Bf6 {[%clk
0:02:32.3]} 34. Ref2 {[%clk 0:01:34]} 34... Rg5 {[%clk 0:02:27.6]} 35. Bb2
{[%clk 0:01:30.2]} 35... Bxb2 {[%clk 0:02:22.9]} 36. Qxb2 {[%clk 0:01:30.1]}
36... Qf7 {[%clk 0:02:20.8]} 37. Qd2 {[%clk 0:01:25.3]} 37... Re8 {[%clk
0:02:17.7]} 38. Rf4 {[%clk 0:01:20]} 38... Re5 {[%clk 0:02:12.4]} 39. Rd1 {[%clk
0:01:19.3]} 39... Rg4 {[%clk 0:02:08.6]} 40. Rf2 {[%clk 0:01:12]} 40... b6
{[%clk 0:01:58]} 41. a5 {[%clk 0:01:08.6]} 41... Qb7 {[%clk 0:01:45.2]} 42. axb6
{[%clk 0:01:05.2]} 42... axb6 {[%clk 0:01:29.8]} 43. Rff1 {[%clk 0:00:53.2]}
43... Rg8 {[%clk 0:01:17.5]} 44. Rf4 {[%clk 0:00:47.9]} 44... Rg4 {[%clk
0:01:14.1]} 45. Rf2 {[%clk 0:00:40.6]} 45... Rg8 {[%clk 0:01:10.3]} 46. b4
{[%clk 0:00:33.3]} 46... Qc7 {[%clk 0:01:03.5]} 47. bxc5 {[%clk 0:00:32.1]}
47... bxc5 {[%clk 0:00:56.1]} 48. Ra1 {[%clk 0:00:28.8]} 48... Qb7 {[%clk
0:00:51.6]} 49. Qa5 {[%clk 0:00:22.9]} 49... Rxd5 {[%clk 0:00:48.2]} 50. Rfa2
{[%clk 0:00:21]} 50... Rc8 {[%clk 0:00:44.3]} 51. b6 {[%clk 0:00:18.4]} 51...
Rc6 {[%clk 0:00:30.5]} 52. Qa8+ {[%clk 0:00:17.1]} 52... Qxa8 {[%clk 0:00:27.5]}
53. Rxa8+ {[%clk 0:00:17]} 53... Kb7 {[%clk 0:00:23]} 54. R1a7+ {[%clk
0:00:15.8]} 54... Kxb6 {[%clk 0:00:18.6]} 55. Ra6+ {[%clk 0:00:15.7]} 55... Kb5
{[%clk 0:00:13.3]} 56. Ra5+ {[%clk 0:00:15.6]} 56... Kc4 {[%clk 0:00:07.5]} 57.
Ra3 {[%clk 0:00:15.2]} 57... Rb6 {[%clk 0:00:06]} 58. R8a4+ {[%clk 0:00:14.4]}
58... Rb4 {[%clk 0:00:05.1]} 59. Rxb4+ {[%clk 0:00:13.7]} 59... cxb4 {[%clk
0:00:04.4]} 60. Ra1 {[%clk 0:00:13.6]} 60... b3 {[%clk 0:00:03.8]} 61. Rc1+
{[%clk 0:00:13.2]} 61... Kb4 {[%clk 0:00:03]} 62. Ra1 {[%clk 0:00:13.1]} 62...
Kc3 {[%clk 0:00:02.3]} 63. Rc1+ {[%clk 0:00:11.9]} 63... Kb2 {[%clk 0:00:01.3]}
64. Rf1 {[%clk 0:00:11.8]} 64... Rc5 {[%clk 0:00:00.4]} 65. Rf2+ {[%clk
0:00:11.7]} 1-0

[Event "Live Chess"]
[Site "Chess.com"]
[Date "2024.06.01"]
[Round "-"]
[White "WelshTiger"]
[Black "uselessduffer"]
[Result "1-0"]
[WhiteElo "2549"]
[BlackElo "2411"]
[TimeControl "300"]
[EndTime "13:13:33 PDT"]
[Termination "WelshTiger won by resignation"]

1. e4 {[%clk 0:04:57.8]} 1... g6 {[%clk 0:04:55.8]} 2. d4 {[%clk 0:04:55.3]}
2... Bg7 {[%clk 0:04:55.1]} 3. c3 {[%clk 0:04:53.4]} 3... Nf6 {[%clk 0:04:52.4]}
4. Bd3 {[%clk 0:04:51.5]} 4... O-O {[%clk 0:04:51]} 5. Nf3 {[%clk 0:04:49.5]}
5... d6 {[%clk 0:04:50]} 6. h3 {[%clk 0:04:48.6]} 6... Nc6 {[%clk 0:04:48.7]} 7.
O-O {[%clk 0:04:47]} 7... e5 {[%clk 0:04:47.6]} 8. Nbd2 {[%clk 0:04:29.7]} 8...
Nh5 {[%clk 0:04:43]} 9. dxe5 {[%clk 0:04:19.9]} 9... dxe5 {[%clk 0:04:37.7]} 10.
Nc4 {[%clk 0:04:18.5]} 10... Nf4 {[%clk 0:04:24.6]} 11. Bxf4 {[%clk 0:04:16.7]}
11... exf4 {[%clk 0:04:23.4]} 12. Qc2 {[%clk 0:04:04.9]} 12... Qe7 {[%clk
0:04:00.3]} 13. a4 {[%clk 0:04:01.2]} 13... Ne5 {[%clk 0:03:52.1]} 14. Nfxe5
{[%clk 0:03:59.4]} 14... Bxe5 {[%clk 0:03:52]} 15. Nxe5 {[%clk 0:03:44.8]} 15...
Qxe5 {[%clk 0:03:50.8]} 16. f3 {[%clk 0:03:33.4]} 16... Be6 {[%clk 0:03:24.1]}
17. Qf2 {[%clk 0:03:14.2]} 17... c5 {[%clk 0:03:12]} 18. Bc2 {[%clk 0:03:02.3]}
18... Rfd8 {[%clk 0:03:09.2]} 19. Rfd1 {[%clk 0:02:59.3]} 19... g5 {[%clk
0:03:01.4]} 20. Rxd8+ {[%clk 0:02:47.1]} 20... Rxd8 {[%clk 0:03:01.3]} 21. Rd1
{[%clk 0:02:46.1]} 21... Rxd1+ {[%clk 0:02:46.3]} 22. Bxd1 {[%clk 0:02:46]}
22... Qd6 {[%clk 0:02:45.3]} 23. Bc2 {[%clk 0:02:44.8]} 23... Kg7 {[%clk
0:02:43.3]} 24. Kf1 {[%clk 0:02:40.8]} 24... Bc4+ {[%clk 0:02:40.9]} 25. Ke1
{[%clk 0:02:39.7]} 25... Kf6 {[%clk 0:02:39.6]} 26. h4 {[%clk 0:02:22.5]} 26...
h6 {[%clk 0:02:37]} 27. hxg5+ {[%clk 0:02:21.8]} 27... hxg5 {[%clk 0:02:36]} 28.
b3 {[%clk 0:02:12.4]} 28... Ba6 {[%clk 0:02:19.4]} 29. Qg1 {[%clk 0:02:02.2]}
29... Bd3 {[%clk 0:00:43.7]} 30. Bxd3 {[%clk 0:01:53.7]} 30... Qxd3 {[%clk
0:00:43.6]} 31. Qxc5 {[%clk 0:01:52.7]} 31... Qb1+ {[%clk 0:00:40.4]} 32. Kf2
{[%clk 0:01:51.5]} 1-0

[Event "Live Chess"]
[Site "Chess.com"]
[Date "2024.06.01"]
[Round "-"]
[White "Tushinskiy"]
[Black "ProfPoisson"]
[Result "0-1"]
[WhiteElo "2239"]
[BlackElo "1293"]
[TimeControl "300"]
[EndTime "13:13:35 PDT"]
[Termination "ProfPoisson won - game abandoned"]

1. d4 {[%clk 0:04:56]} 1... e6 {[%clk 0:04:57.8]} 2. c3 {[%clk 0:04:55.9]} 2...
f5 {[%clk 0:04:55]} 3. Nf3 {[%clk 0:04:55.8]} 3... Nf6 {[%clk 0:04:53]} 4. Bg5
{[%clk 0:04:46.2]} 4... h6 {[%clk 0:04:46.1]} 5. Bxf6 {[%clk 0:04:43.9]} 5...
Qxf6 {[%clk 0:04:43.6]} 6. Nbd2 {[%clk 0:04:43.8]} 6... b6 {[%clk 0:04:40.5]} 7.
e4 {[%clk 0:04:43.1]} 7... Bb7 {[%clk 0:04:31.8]} 8. Bd3 {[%clk 0:04:23.8]} 8...
fxe4 {[%clk 0:04:14.5]} 9. Nxe4 {[%clk 0:04:21.8]} 9... Bxe4 {[%clk 0:04:10.3]}
10. Bxe4 {[%clk 0:04:21.7]} 10... d5 {[%clk 0:04:08.5]} 11. Bc2 {[%clk
0:04:19.7]} 11... Bd6 {[%clk 0:04:05.8]} 12. Qe2 {[%clk 0:04:18.6]} 12... O-O
{[%clk 0:04:03.3]} 13. O-O-O {[%clk 0:04:12.9]} 13... a5 {[%clk 0:03:57]} 0-1

[Event "Live Chess"]
[Site "Chess.com"]
[Date "2024.06.01"]
[Round "-"]
[White "Stanbad1"]
[Black "koekoekoe"]
[Result "1-0"]
[WhiteElo "2667"]
[BlackElo "2047"]
[TimeControl "300"]
[EndTime "13:13:53 PDT"]
[Termination "Stanbad1 won by resignation"]

1. d4 {[%clk 0:04:56.6]} 1... d5 {[%clk 0:04:59.5]} 2. Nc3 {[%clk 0:04:56.3]}
2... Nf6 {[%clk 0:04:57.3]} 3. Bf4 {[%clk 0:04:55.9]} 3... Bf5 {[%clk
0:04:56.1]} 4. e3 {[%clk 0:04:55.2]} 4... e6 {[%clk 0:04:55.3]} 5. Nf3 {[%clk
0:04:54.3]} 5... Bb4 {[%clk 0:04:54.6]} 6. Bd3 {[%clk 0:04:52.9]} 6... Ne4
{[%clk 0:04:51.4]} 7. O-O {[%clk 0:04:51.2]} 7... Nxc3 {[%clk 0:04:41.1]} 8.
bxc3 {[%clk 0:04:50]} 8... Bxc3 {[%clk 0:04:41]} 9. Rb1 {[%clk 0:04:49.5]} 9...
b6 {[%clk 0:04:30.4]} 10. Bxf5 {[%clk 0:04:48.4]} 10... exf5 {[%clk 0:04:28.6]}
11. Qd3 {[%clk 0:04:48.3]} 11... Ba5 {[%clk 0:04:27.4]} 12. Qxf5 {[%clk
0:04:46.1]} 12... O-O {[%clk 0:04:25.3]} 13. Rfc1 {[%clk 0:04:42.7]} 13... Nd7
{[%clk 0:04:15.8]} 14. Qxd5 {[%clk 0:04:39.5]} 14... Nf6 {[%clk 0:04:11.3]} 15.
Qxd8 {[%clk 0:04:38.2]} 15... Rfxd8 {[%clk 0:04:10.3]} 16. Bxc7 {[%clk
0:04:37.8]} 16... Rdc8 {[%clk 0:04:07.7]} 17. Be5 {[%clk 0:04:36.8]} 17... Rc6
{[%clk 0:04:03.8]} 18. c4 {[%clk 0:04:34.8]} 18... Rac8 {[%clk 0:04:00]} 19. c5
{[%clk 0:04:33.7]} 19... bxc5 {[%clk 0:03:54.8]} 20. dxc5 {[%clk 0:04:31.9]}
20... Bb6 {[%clk 0:03:46.4]} 21. Bd6 {[%clk 0:04:22.8]} 21... Ne4 {[%clk
0:03:41.3]} 22. Nd4 {[%clk 0:04:20.1]} 22... Nxd6 {[%clk 0:02:31.6]} 23. Nxc6
{[%clk 0:04:18.3]} 23... Rxc6 {[%clk 0:02:26.6]} 24. cxb6 {[%clk 0:04:16.5]} 1-0

[Event "Live Chess"]
[Site "Chess.com"]
[Date "2024.06.01"]
[Round "-"]
[White "KeithArkell"]
[Black "Pablo_dmp"]
[Result "1-0"]
[WhiteElo "2458"]
[BlackElo "2013"]
[TimeControl "300"]
[EndTime "13:13:54 PDT"]
[Termination "KeithArkell won by checkmate"]

1. d4 {[%clk 0:04:57.9]} 1... Nf6 {[%clk 0:04:58.3]} 2. Nf3 {[%clk 0:04:57.2]}
2... b6 {[%clk 0:04:56.8]} 3. c4 {[%clk 0:04:56.4]} 3... Bb7 {[%clk 0:04:55.6]}
4. g3 {[%clk 0:04:55.8]} 4... e6 {[%clk 0:04:53.9]} 5. Bg2 {[%clk 0:04:55.1]}
5... Bb4+ {[%clk 0:04:52.9]} 6. Bd2 {[%clk 0:04:54.1]} 6... Qe7 {[%clk
0:04:51.6]} 7. O-O {[%clk 0:04:53.1]} 7... O-O {[%clk 0:04:50.5]} 8. Bg5 {[%clk
0:04:52.3]} 8... h6 {[%clk 0:04:49.1]} 9. Bxf6 {[%clk 0:04:51.2]} 9... Qxf6
{[%clk 0:04:48.3]} 10. c5 {[%clk 0:04:50.7]} 10... bxc5 {[%clk 0:04:44.7]} 11.
a3 {[%clk 0:04:50.2]} 11... Ba5 {[%clk 0:04:42.5]} 12. Ne5 {[%clk 0:04:48.1]}
12... Bxg2 {[%clk 0:04:40]} 13. Kxg2 {[%clk 0:04:47.2]} 13... cxd4 {[%clk
0:04:38.6]} 14. Nc4 {[%clk 0:04:43.9]} 14... Bb6 {[%clk 0:04:27.3]} 15. a4
{[%clk 0:04:38.6]} 15... a5 {[%clk 0:04:21.9]} 16. Nxb6 {[%clk 0:04:37.1]} 16...
cxb6 {[%clk 0:04:20.9]} 17. Na3 {[%clk 0:04:37]} 17... Nc6 {[%clk 0:04:15]} 18.
Qd3 {[%clk 0:04:35.8]} 18... Nb4 {[%clk 0:03:49.9]} 19. Qb5 {[%clk 0:04:33.6]}
19... Rab8 {[%clk 0:03:48]} 20. Rac1 {[%clk 0:04:32.2]} 20... d5 {[%clk
0:03:36.7]} 21. Rc7 {[%clk 0:04:28.7]} 21... Qe5 {[%clk 0:03:32.8]} 22. Rfc1
{[%clk 0:04:25.7]} 22... Qe4+ {[%clk 0:03:23.9]} 23. f3 {[%clk 0:04:24.5]} 23...
Qe3 {[%clk 0:03:19.6]} 24. Nc2 {[%clk 0:04:18.4]} 24... Nxc2 {[%clk 0:03:13.4]}
25. R1xc2 {[%clk 0:04:15.6]} 25... Rfd8 {[%clk 0:02:40.4]} 26. R7c6 {[%clk
0:04:10.5]} 26... d3 {[%clk 0:02:21.6]} 27. Qxd3 {[%clk 0:04:07.1]} 27... Qe5
{[%clk 0:02:12.1]} 28. Rc7 {[%clk 0:04:01.8]} 28... d4 {[%clk 0:01:59.4]} 29.
Qb5 {[%clk 0:03:50.4]} 29... Qe3 {[%clk 0:01:54.9]} 30. R7c6 {[%clk 0:03:37.8]}
30... d3 {[%clk 0:01:53.1]} 31. exd3 {[%clk 0:03:36.2]} 31... Rxd3 {[%clk
0:01:51.4]} 32. Rf2 {[%clk 0:03:35.2]} 32... Rb3 {[%clk 0:01:42.2]} 33. Qc4
{[%clk 0:03:22.1]} 33... Rd8 {[%clk 0:01:37]} 34. Qc2 {[%clk 0:03:03.8]} 34...
g6 {[%clk 0:01:23]} 35. Re2 {[%clk 0:03:02.8]} 35... Qxf3+ {[%clk 0:01:21]} 36.
Kg1 {[%clk 0:02:59.6]} 36... Rbd3 {[%clk 0:01:15.5]} 37. Rc8 {[%clk 0:02:57.9]}
37... Kg7 {[%clk 0:00:38.2]} 38. Rxd8 {[%clk 0:02:54]} 38... Rxd8 {[%clk
0:00:38.1]} 39. Qc3+ {[%clk 0:02:49.3]} 39... Qxc3 {[%clk 0:00:37.4]} 40. bxc3
{[%clk 0:02:49.2]} 40... Rd3 {[%clk 0:00:35.8]} 41. Rc2 {[%clk 0:02:46.8]} 41...
Kf6 {[%clk 0:00:33.6]} 42. Kf2 {[%clk 0:02:46]} 42... Ke5 {[%clk 0:00:32.9]} 43.
Ke2 {[%clk 0:02:45.5]} 43... Rd5 {[%clk 0:00:31.4]} 44. Rb2 {[%clk 0:02:44.6]}
44... Rd6 {[%clk 0:00:30]} 45. Ke3 {[%clk 0:02:42]} 45... Rc6 {[%clk 0:00:29.4]}
46. Rb5+ {[%clk 0:02:40.2]} 46... Kf6 {[%clk 0:00:28.1]} 47. Kd4 {[%clk
0:02:38.9]} 47... Rd6+ {[%clk 0:00:24]} 48. Kc4 {[%clk 0:02:36.5]} 48... Rd2
{[%clk 0:00:22.9]} 49. Rxb6 {[%clk 0:02:35.6]} 49... Rxh2 {[%clk 0:00:21.7]} 50.
Kb5 {[%clk 0:02:34.8]} 50... Rb2+ {[%clk 0:00:20.5]} 51. Kxa5 {[%clk 0:02:33.8]}
51... Rc2 {[%clk 0:00:19.4]} 52. Kb4 {[%clk 0:02:28.9]} 52... Rg2 {[%clk
0:00:18.1]} 53. a5 {[%clk 0:02:28.3]} 53... Rxg3 {[%clk 0:00:17.4]} 54. a6
{[%clk 0:02:28]} 54... Rg4+ {[%clk 0:00:16.6]} 55. c4 {[%clk 0:02:27.5]} 55...
Rg1 {[%clk 0:00:16.5]} 56. Rb5 {[%clk 0:02:25.8]} 56... Rb1+ {[%clk 0:00:15.2]}
57. Kc5 {[%clk 0:02:24.8]} 57... Rxb5+ {[%clk 0:00:14.6]} 58. cxb5 {[%clk
0:02:23.3]} 58... h5 {[%clk 0:00:14.5]} 59. a7 {[%clk 0:02:22.9]} 59... h4
{[%clk 0:00:14.4]} 60. a8=Q {[%clk 0:02:22.6]} 60... h3 {[%clk 0:00:14.3]} 61.
Qf3+ {[%clk 0:02:21.8]} 61... Kg5 {[%clk 0:00:13]} 62. Qxh3 {[%clk 0:02:21]}
62... f5 {[%clk 0:00:12.9]} 63. Qg3+ {[%clk 0:02:19.9]} 63... Kf6 {[%clk
0:00:12.8]} 64. Kd6 {[%clk 0:02:18.7]} 64... e5 {[%clk 0:00:12.7]} 65. Qxe5+
{[%clk 0:02:17.9]} 65... Kg5 {[%clk 0:00:12.4]} 66. b6 {[%clk 0:02:16.9]} 66...
Kh5 {[%clk 0:00:12.3]} 67. b7 {[%clk 0:02:16.5]} 67... Kh6 {[%clk 0:00:11.7]}
68. b8=Q {[%clk 0:02:15.8]} 68... g5 {[%clk 0:00:11.6]} 69. Qbh8+ {[%clk
0:02:14.7]} 69... Kg6 {[%clk 0:00:10.8]} 70. Qef6# {[%clk 0:02:14]} 1-0

[Event "Live Chess"]
[Site "Chess.com"]
[Date "2024.06.01"]
[Round "-"]
[White "chessgoatpawel"]
[Black "f4nomore"]
[Result "1-0"]
[WhiteElo "1991"]
[BlackElo "1205"]
[TimeControl "300"]
[EndTime "13:13:59 PDT"]
[Termination "chessgoatpawel won by resignation"]

1. e4 {[%clk 0:04:58.5]} 1... g6 {[%clk 0:04:57.8]} 2. d4 {[%clk 0:04:57.6]}
2... Bg7 {[%clk 0:04:55.2]} 3. Nf3 {[%clk 0:04:57.5]} 3... d6 {[%clk 0:04:53.7]}
4. Bc4 {[%clk 0:04:55.5]} 4... Nc6 {[%clk 0:04:47.7]} 5. O-O {[%clk 0:04:53.8]}
5... Nf6 {[%clk 0:04:45.7]} 6. Nc3 {[%clk 0:04:51.5]} 6... O-O {[%clk
0:04:42.9]} 7. Re1 {[%clk 0:04:49.9]} 7... e5 {[%clk 0:04:40.6]} 8. dxe5 {[%clk
0:04:48]} 8... Nxe5 {[%clk 0:04:38.3]} 9. Nxe5 {[%clk 0:04:46.9]} 9... dxe5
{[%clk 0:04:36.8]} 10. Bg5 {[%clk 0:04:44.6]} 10... Qxd1 {[%clk 0:04:33.4]} 11.
Raxd1 {[%clk 0:04:41.6]} 11... Nd7 {[%clk 0:04:20.1]} 12. Nd5 {[%clk 0:04:38.6]}
12... f6 {[%clk 0:04:14.9]} 13. Nxc7+ {[%clk 0:04:34.8]} 13... Kh8 {[%clk
0:04:08.2]} 14. Bxf6 {[%clk 0:04:30.2]} 14... Nxf6 {[%clk 0:04:04]} 15. Nxa8
{[%clk 0:04:28.8]} 15... Ng4 {[%clk 0:04:02]} 16. f3 {[%clk 0:04:26.2]} 16...
Nh6 {[%clk 0:03:55.4]} 17. Nc7 {[%clk 0:04:22.7]} 17... b6 {[%clk 0:03:52.7]}
18. Ne6 {[%clk 0:04:14.7]} 18... Re8 {[%clk 0:03:44.2]} 19. Nxg7 {[%clk
0:04:13]} 19... Kxg7 {[%clk 0:03:42.5]} 20. Rd2 {[%clk 0:04:12]} 20... Nf7
{[%clk 0:03:34.5]} 21. Bxf7 {[%clk 0:04:10]} 21... Kxf7 {[%clk 0:03:32.6]} 22.
Red1 {[%clk 0:04:09.9]} 22... Be6 {[%clk 0:03:28]} 23. a3 {[%clk 0:04:07.5]}
23... Rc8 {[%clk 0:03:21.6]} 24. c3 {[%clk 0:04:03.5]} 24... a6 {[%clk
0:03:12.5]} 25. Rd6 {[%clk 0:04:01.8]} 25... Rb8 {[%clk 0:03:08.7]} 26. Rc6
{[%clk 0:04:00.1]} 26... a5 {[%clk 0:03:00.8]} 27. Rdd6 {[%clk 0:03:57.8]} 27...
Ba2 {[%clk 0:02:52.9]} 28. Rxb6 {[%clk 0:03:55.8]} 28... Rxb6 {[%clk 0:02:50.8]}
29. Rxb6 {[%clk 0:03:54]} 1-0

[Event "Live Chess"]
[Site "Chess.com"]
[Date "2024.06.01"]
[Round "-"]
[White "Nazarenko_vital"]
[Black "chessfiction"]
[Result "0-1"]
[WhiteElo "1485"]
[BlackElo "2395"]
[TimeControl "300"]
[EndTime "13:14:00 PDT"]
[Termination "chessfiction won on time"]

1. e4 {[%clk 0:04:57.1]} 1... c5 {[%clk 0:04:56.6]} 2. c3 {[%clk 0:04:55.3]}
2... Nc6 {[%clk 0:04:56.5]} 3. d4 {[%clk 0:04:53.7]} 3... d5 {[%clk 0:04:56.1]}
4. e5 {[%clk 0:04:51.3]} 4... Bf5 {[%clk 0:04:53.9]} 5. Nf3 {[%clk 0:04:43.2]}
5... e6 {[%clk 0:04:17.9]} 6. Bd3 {[%clk 0:04:41.8]} 6... Nge7 {[%clk
0:04:12.6]} 7. Bxf5 {[%clk 0:04:37.4]} 7... Nxf5 {[%clk 0:04:12.5]} 8. a3 {[%clk
0:04:28.2]} 8... Rc8 {[%clk 0:04:09.9]} 9. O-O {[%clk 0:04:21.8]} 9... Be7
{[%clk 0:04:08.2]} 10. Nbd2 {[%clk 0:04:19.6]} 10... cxd4 {[%clk 0:04:07.1]} 11.
cxd4 {[%clk 0:04:17.9]} 11... Qb6 {[%clk 0:04:06.6]} 12. Nb3 {[%clk 0:04:11.6]}
12... a5 {[%clk 0:04:04.4]} 13. g4 {[%clk 0:04:06.3]} 13... Nh4 {[%clk
0:04:01.8]} 14. Nxh4 {[%clk 0:04:01.2]} 14... Bxh4 {[%clk 0:04:01.7]} 15. Be3
{[%clk 0:03:51.4]} 15... Be7 {[%clk 0:03:35.9]} 16. Rb1 {[%clk 0:03:37.7]} 16...
a4 {[%clk 0:03:30.7]} 17. Na1 {[%clk 0:03:24.4]} 17... Qa6 {[%clk 0:02:59.7]}
18. Nc2 {[%clk 0:03:16.6]} 18... O-O {[%clk 0:02:49]} 19. f4 {[%clk 0:03:08.4]}
19... Na5 {[%clk 0:02:44.4]} 20. Nb4 {[%clk 0:03:02.3]} 20... Bxb4 {[%clk
0:02:30.8]} 21. axb4 {[%clk 0:03:01]} 21... Nc4 {[%clk 0:02:30.1]} 22. Bf2
{[%clk 0:02:54.8]} 22... Qb5 {[%clk 0:02:26.3]} 23. Qe1 {[%clk 0:02:31]} 23...
Rc6 {[%clk 0:02:17.8]} 24. b3 {[%clk 0:02:23]} 24... Na3 {[%clk 0:02:09.5]} 25.
Rb2 {[%clk 0:02:15.4]} 25... Rfc8 {[%clk 0:02:00.4]} 26. bxa4 {[%clk 0:02:07]}
26... Qxa4 {[%clk 0:01:58.6]} 27. Qd1 {[%clk 0:01:39.9]} 27... Qb5 {[%clk
0:01:41.9]} 28. Qe2 {[%clk 0:01:27.9]} 28... Qxe2 {[%clk 0:01:33.6]} 29. Rxe2
{[%clk 0:01:25.5]} 29... Rb6 {[%clk 0:01:33.1]} 30. Be1 {[%clk 0:01:21.5]} 30...
Rc4 {[%clk 0:01:30.2]} 31. Ra2 {[%clk 0:01:00.9]} 31... Ra6 {[%clk 0:01:19]} 32.
Rf3 {[%clk 0:00:55.4]} 32... Nb5 {[%clk 0:01:13.5]} 33. Rxa6 {[%clk 0:00:52.6]}
33... bxa6 {[%clk 0:01:13.4]} 34. Rd3 {[%clk 0:00:47.8]} 34... Rxd4 {[%clk
0:01:10.7]} 35. Rxd4 {[%clk 0:00:34.8]} 35... Nxd4 {[%clk 0:01:10.6]} 36. Kf2
{[%clk 0:00:30.3]} 36... f6 {[%clk 0:01:04]} 37. Bc3 {[%clk 0:00:22.2]} 37...
fxe5 {[%clk 0:00:58.1]} 38. fxe5 {[%clk 0:00:19.6]} 38... Nc6 {[%clk 0:00:53]}
39. Ke3 {[%clk 0:00:13.3]} 39... Kf7 {[%clk 0:00:51.3]} 40. h4 {[%clk
0:00:08.4]} 40... g6 {[%clk 0:00:47.4]} 41. Kf4 {[%clk 0:00:01.2]} 41... d4
{[%clk 0:00:43.7]} 0-1

[Event "Live Chess"]
[Site "Chess.com"]
[Date "2024.06.01"]
[Round "-"]
[White "JohanKjeldahl"]
[Black "nigelst"]
[Result "1/2-1/2"]
[WhiteElo "1824"]
[BlackElo "1661"]
[TimeControl "300"]
[EndTime "13:14:08 PDT"]
[Termination "Game drawn by repetition"]

1. e4 {[%clk 0:04:54.4]} 1... c6 {[%clk 0:04:57.5]} 2. d4 {[%clk 0:04:50.2]}
2... d5 {[%clk 0:04:55.6]} 3. Nc3 {[%clk 0:04:49]} 3... dxe4 {[%clk 0:04:36.6]}
4. Nxe4 {[%clk 0:04:47.8]} 4... Bf5 {[%clk 0:04:35.1]} 5. Ng3 {[%clk 0:04:46.3]}
5... Bg6 {[%clk 0:04:33.8]} 6. Nf3 {[%clk 0:04:45.7]} 6... Nd7 {[%clk
0:04:32.2]} 7. h4 {[%clk 0:04:44.5]} 7... h6 {[%clk 0:04:30.3]} 8. h5 {[%clk
0:04:43.7]} 8... Bh7 {[%clk 0:04:29.2]} 9. Bd3 {[%clk 0:04:43.2]} 9... Bxd3
{[%clk 0:04:27.3]} 10. Qxd3 {[%clk 0:04:42.2]} 10... e6 {[%clk 0:04:23.4]} 11.
Bf4 {[%clk 0:04:39.4]} 11... Qa5+ {[%clk 0:04:21.8]} 12. c3 {[%clk 0:04:36.6]}
12... Ngf6 {[%clk 0:04:19.2]} 13. Ne5 {[%clk 0:04:30.4]} 13... Nxe5 {[%clk
0:04:16]} 14. Bxe5 {[%clk 0:04:24.6]} 14... Be7 {[%clk 0:04:12.2]} 15. O-O
{[%clk 0:04:14.3]} 15... Rd8 {[%clk 0:04:07.9]} 16. Qe2 {[%clk 0:04:09.5]} 16...
O-O {[%clk 0:04:01.4]} 17. a4 {[%clk 0:04:07.4]} 17... Qb6 {[%clk 0:03:58.7]}
18. b4 {[%clk 0:04:06]} 18... a5 {[%clk 0:03:52]} 19. b5 {[%clk 0:04:03.5]}
19... cxb5 {[%clk 0:03:48.1]} 20. axb5 {[%clk 0:04:02.2]} 20... Nd7 {[%clk
0:03:39.5]} 21. Ne4 {[%clk 0:03:43.1]} 21... Nxe5 {[%clk 0:03:37.2]} 22. dxe5
{[%clk 0:03:42]} 22... Rd7 {[%clk 0:03:16]} 23. Qg4 {[%clk 0:03:36.6]} 23... Kh7
{[%clk 0:03:03.9]} 24. c4 {[%clk 0:03:23.3]} 24... Rfd8 {[%clk 0:03:00.3]} 25.
Rad1 {[%clk 0:03:10.9]} 25... Qc7 {[%clk 0:02:42.5]} 26. Rxd7 {[%clk 0:03:00.8]}
26... Rxd7 {[%clk 0:02:40.8]} 27. Qf4 {[%clk 0:02:20.4]} 27... Qd8 {[%clk
0:02:11.9]} 28. Qxf7 {[%clk 0:02:09.9]} 28... Rd1 {[%clk 0:02:00]} 29. Qg6+
{[%clk 0:02:03.7]} 29... Kh8 {[%clk 0:01:54.9]} 30. Rxd1 {[%clk 0:01:56.1]}
30... Qxd1+ {[%clk 0:01:53.1]} 31. Kh2 {[%clk 0:01:54.6]} 31... a4 {[%clk
0:01:21.3]} 32. Qe8+ {[%clk 0:01:44.9]} 32... Kh7 {[%clk 0:01:20.2]} 33. Qxe7
{[%clk 0:01:39.6]} 33... Qxh5+ {[%clk 0:01:18.4]} 34. Kg1 {[%clk 0:01:35.2]}
34... Qd1+ {[%clk 0:01:16.9]} 35. Kh2 {[%clk 0:01:32.9]} 35... Qh5+ {[%clk
0:01:15.6]} 36. Kg1 {[%clk 0:01:26.8]} 36... Qd1+ {[%clk 0:01:14.3]} 37. Kh2
{[%clk 0:01:26.1]} 37... Qh5+ {[%clk 0:01:12.9]} 1/2-1/2